fUST/lending_fUST_20260519
["ID","MTS","AMOUNT","RATE_DAILY","PERIOD"]
[422642103,1779201181000,-519.43727688,0.00017808,30]
[422642100,1779201181000,-177.62373768,0.00016696,30]
[422642102,1779201181000,-207.638058,0.000178,30]
[422642099,1779201181000,-177.62373768,0.00016628,30]
[422642098,1779201181000,-177.62373768,0.0001656,30]
[422642092,1779201181000,-205.0,0.00016019,30]
[422642095,1779201181000,-188.0,0.00016019,30]
[422642101,1779201181000,-337.3851016,0.00016764,30]
[422642096,1779201181000,-177.62373768,0.00016423,30]
[422642097,1779201181000,-177.62373768,0.00016491,30]
[422642094,1779201181000,-159.0,0.00016019,30]
[422642108,1779201198000,-200.0,0.00018226,120]
[422642109,1779201198000,-200.0,0.00018418,120]
[422642107,1779201198000,-10000.0,0.00018,30]
[422642111,1779201199000,-164260.7450066,0.00018493,120]
[422642110,1779201199000,-200.0,0.00018482,120]
[422642166,1779201397000,152.0,0.00015989,30]
[422642591,1779201564000,157.0,0.00015879,30]
[422642592,1779201612000,339.0,0.00015879,30]
[422642607,1779201913000,164.617923,3.65e-05,2]
[422642608,1779201925000,229.0,0.00015879,30]
[422642611,1779202029000,226.0,0.00015879,30]
[422642629,1779202221000,280.0,0.00015879,30]
[422642842,1779202233000,-690.91920878,8.412e-05,2]
[422642830,1779202233000,-671.72700854,8.412e-05,2]
[422642826,1779202233000,-671.72700854,8.412e-05,2]
[422642823,1779202233000,-671.72700854,8.412e-05,2]
[422642827,1779202233000,-671.72700854,8.412e-05,2]
[422642825,1779202233000,-671.72700854,8.412e-05,2]
[422642822,1779202233000,-671.72700854,8.412e-05,2]
[422642819,1779202233000,-30832.86145127,8.412e-05,2]
[422642820,1779202233000,-300.80061349,8.412e-05,2]
[422642828,1779202233000,-671.72700854,8.412e-05,2]
[422642817,1779202233000,-300.0,8.411e-05,2]
[422642824,1779202233000,-671.72700854,8.412e-05,2]
[422642829,1779202233000,-671.72700854,8.412e-05,2]
[422642821,1779202233000,-671.72700854,8.412e-05,2]
[422642818,1779202233000,-1200.0,8.411e-05,2]
[422642815,1779202233000,-1560.39051,7.905e-05,2]
[422642813,1779202233000,-300.0,7.603e-05,2]
[422642816,1779202233000,-1560.39051,8.238e-05,2]
[422642814,1779202233000,-170.759237,7.849e-05,2]
[422642812,1779202233000,-367.46170419,7.461e-05,2]
[422642810,1779202233000,-170.759237,5.302e-05,2]
[422642831,1779202233000,-671.72700854,8.412e-05,2]
[422642841,1779202233000,-690.91920878,8.412e-05,2]
[422642811,1779202233000,-311.40822389,5.461e-05,2]
[422642838,1779202233000,-690.91920878,8.412e-05,2]
[422642867,1779202233000,-536.0,8.413e-05,2]
[422642865,1779202233000,-5399.86526697,8.413e-05,2]
[422642848,1779202233000,-690.91920878,8.412e-05,2]
[422642863,1779202233000,-11656.52747712,8.413e-05,2]
[422642852,1779202233000,-703.1119007,8.412e-05,2]
[422642850,1779202233000,-703.1119007,8.412e-05,2]
[422642860,1779202233000,-477.96,8.412e-05,2]
[422642846,1779202233000,-690.91920878,8.412e-05,2]
[422642845,1779202233000,-690.91920878,8.412e-05,2]
[422642861,1779202233000,-500.0,8.412e-05,2]
[422642858,1779202233000,-500.0,8.412e-05,2]
[422642856,1779202233000,-703.1119007,8.412e-05,2]
[422642843,1779202233000,-690.91920878,8.412e-05,2]
[422642839,1779202233000,-690.91920878,8.412e-05,2]
[422642835,1779202233000,-671.72700854,8.412e-05,2]
[422642834,1779202233000,-671.72700854,8.412e-05,2]
[422642836,1779202233000,-671.72700854,8.412e-05,2]
[422642832,1779202233000,-671.72700854,8.412e-05,2]
[422642840,1779202233000,-690.91920878,8.412e-05,2]
[422642844,1779202233000,-690.91920878,8.412e-05,2]
[422642854,1779202233000,-703.1119007,8.412e-05,2]
[422642837,1779202233000,-690.91920878,8.412e-05,2]
[422642833,1779202233000,-671.72700854,8.412e-05,2]
[422642924,1779202237000,-23331.28094002,8.413e-05,2]
[422642933,1779202238000,-83671.56780711,8.413e-05,2]
[422642934,1779202238000,-32915.40963595,8.413e-05,2]
[422642931,1779202238000,-9297.65016271,8.413e-05,2]
[422642932,1779202238000,-1224.85871026,8.413e-05,2]
[422642930,1779202238000,-647.81,8.413e-05,2]
[422642928,1779202238000,-1134.089456,8.413e-05,2]
[422642929,1779202238000,-31068.88477096,8.413e-05,2]
[422642926,1779202238000,-2663.83,8.413e-05,2]
[422642938,1779202240000,-15622.0,8.413e-05,2]
[422642939,1779202240000,-1111.25679593,8.413e-05,2]
[422642940,1779202240000,-13129.1761327,8.413e-05,2]
[422642965,1779202243000,-500.0,8.412e-05,2]
[422642966,1779202243000,-1778.80907994,8.413e-05,2]
[422642967,1779202243000,-9810.58100322,8.413e-05,2]
[422642964,1779202243000,-1748.42,8.413e-05,2]
[422642962,1779202243000,-274.508,8.413e-05,2]
[422642963,1779202243000,-411.58,8.412e-05,2]
[422642961,1779202243000,-443.0,8.413e-05,2]
[422642960,1779202243000,-565.45,8.413e-05,2]
[422642993,1779202246000,-207.6,8.612e-05,2]
[422642995,1779202246000,-500.0,8.612e-05,2]
[422642997,1779202246000,-500.0,8.612e-05,2]
[422642996,1779202246000,-500.0,8.612e-05,2]
[422642998,1779202246000,-500.0,8.685e-05,2]
[422642992,1779202246000,-1560.39051,8.571e-05,2]
[422642991,1779202246000,-43111.89428801,8.513e-05,2]
[422643001,1779202246000,-284.18,8.712e-05,2]
[422642994,1779202246000,-174.49,8.612e-05,2]
[422642990,1779202246000,-278.50452501,8.438e-05,2]
[422642986,1779202246000,-6752.12297695,8.413e-05,2]
[422642999,1779202246000,-500.0,8.686e-05,2]
[422642989,1779202246000,-151.5,8.438e-05,2]
[422642987,1779202246000,-151.5,8.438e-05,2]
[422642984,1779202246000,-25890.06642634,8.413e-05,2]
[422642985,1779202246000,-1577.0,8.413e-05,2]
[422642983,1779202246000,-4288.13009259,8.413e-05,2]
[422642982,1779202246000,-2440.47691168,8.413e-05,2]
[422642980,1779202246000,-500.0,8.411e-05,2]
[422642981,1779202246000,-12745.98409221,8.413e-05,2]
[422643004,1779202246000,-500.0,8.712e-05,2]
[422643000,1779202246000,-500.0,8.686e-05,2]
[422643003,1779202246000,-500.0,8.712e-05,2]
[422642988,1779202246000,-151.5,8.438e-05,2]
[422643002,1779202246000,-500.0,8.712e-05,2]
[422643008,1779202246000,-500.0,8.712e-05,2]
[422643025,1779202246000,-500.0,8.712e-05,2]
[422643026,1779202246000,-500.0,8.712e-05,2]
[422643024,1779202246000,-500.0,8.712e-05,2]
[422643022,1779202246000,-500.0,8.712e-05,2]
[422643023,1779202246000,-500.0,8.712e-05,2]
[422643018,1779202246000,-411.13703669,8.712e-05,2]
[422643020,1779202246000,-500.0,8.712e-05,2]
[422643015,1779202246000,-500.0,8.712e-05,2]
[422643019,1779202246000,-522.62,8.712e-05,2]
[422643016,1779202246000,-500.0,8.712e-05,2]
[422643021,1779202246000,-500.0,8.712e-05,2]
[422643014,1779202246000,-500.0,8.712e-05,2]
[422643027,1779202246000,-500.0,8.712e-05,2]
[422643006,1779202246000,-500.0,8.712e-05,2]
[422643011,1779202246000,-511.92,8.712e-05,2]
[422643007,1779202246000,-500.0,8.712e-05,2]
[422643009,1779202246000,-500.0,8.712e-05,2]
[422643005,1779202246000,-500.0,8.712e-05,2]
[422643012,1779202246000,-500.0,8.712e-05,2]
[422643013,1779202246000,-500.0,8.712e-05,2]
[422643017,1779202246000,-500.0,8.712e-05,2]
[422643010,1779202246000,-500.0,8.712e-05,2]
[422643063,1779202247000,-500.0,8.712e-05,2]
[422643055,1779202247000,-500.0,8.712e-05,2]
[422643057,1779202247000,-500.0,8.712e-05,2]
[422643065,1779202247000,-500.0,8.712e-05,2]
[422643059,1779202247000,-500.74102585,8.712e-05,2]
[422643066,1779202247000,-500.0,8.712e-05,2]
[422643068,1779202247000,-500.0,8.712e-05,2]
[422643067,1779202247000,-500.0,8.712e-05,2]
[422643069,1779202247000,-536.49,8.712e-05,2]
[422643060,1779202247000,-500.0,8.712e-05,2]
[422643061,1779202247000,-500.0,8.712e-05,2]
[422643080,1779202247000,-500.0,8.712e-05,2]
[422643064,1779202247000,-500.0,8.712e-05,2]
[422643074,1779202247000,-500.0,8.712e-05,2]
[422643073,1779202247000,-401.84735635,8.712e-05,2]
[422643071,1779202247000,-500.0,8.712e-05,2]
[422643079,1779202247000,-500.0,8.712e-05,2]
[422643076,1779202247000,-500.14,8.712e-05,2]
[422643072,1779202247000,-502.4860311,8.712e-05,2]
[422643078,1779202247000,-557.1,8.712e-05,2]
[422643077,1779202247000,-500.0,8.712e-05,2]
[422643075,1779202247000,-500.0,8.712e-05,2]
[422643054,1779202247000,-500.0,8.712e-05,2]
[422643062,1779202247000,-500.0,8.712e-05,2]
[422643058,1779202247000,-500.0,8.712e-05,2]
[422643039,1779202247000,-500.0,8.712e-05,2]
[422643056,1779202247000,-500.0,8.712e-05,2]
[422643028,1779202247000,-500.0,8.712e-05,2]
[422643029,1779202247000,-500.11,8.712e-05,2]
[422643033,1779202247000,-500.0,8.712e-05,2]
[422643030,1779202247000,-500.0,8.712e-05,2]
[422643032,1779202247000,-500.0,8.712e-05,2]
[422643031,1779202247000,-500.14,8.712e-05,2]
[422643034,1779202247000,-500.0,8.712e-05,2]
[422643037,1779202247000,-500.0,8.712e-05,2]
[422643035,1779202247000,-520.89,8.712e-05,2]
[422643041,1779202247000,-500.0,8.712e-05,2]
[422643036,1779202247000,-500.0,8.712e-05,2]
[422643052,1779202247000,-500.0,8.712e-05,2]
[422643043,1779202247000,-500.0,8.712e-05,2]
[422643047,1779202247000,-500.17,8.712e-05,2]
[422643081,1779202247000,-406.82669582,8.712e-05,2]
[422643046,1779202247000,-500.0,8.712e-05,2]
[422643038,1779202247000,-500.0,8.712e-05,2]
[422643040,1779202247000,-500.0,8.712e-05,2]
[422643042,1779202247000,-500.0,8.712e-05,2]
[422643049,1779202247000,-500.0,8.712e-05,2]
[422643048,1779202247000,-401.4455519,8.712e-05,2]
[422643053,1779202247000,-543.26,8.712e-05,2]
[422643050,1779202247000,-619.85032151,8.712e-05,2]
[422643051,1779202247000,-500.0,8.712e-05,2]
[422643044,1779202247000,-500.0,8.712e-05,2]
[422643082,1779202247000,-500.0,8.712e-05,2]
[422643070,1779202247000,-500.0,8.712e-05,2]
[422643083,1779202247000,-500.0,8.712e-05,2]
[422643114,1779202247000,-300.0,8.885e-05,2]
[422643115,1779202247000,-300.0,8.885e-05,2]
[422643111,1779202247000,-300.0,8.885e-05,2]
[422643117,1779202247000,-300.0,8.885e-05,2]
[422643122,1779202247000,-300.0,8.885e-05,2]
[422643116,1779202247000,-300.0,8.885e-05,2]
[422643121,1779202247000,-300.0,8.885e-05,2]
[422643118,1779202247000,-300.0,8.885e-05,2]
[422643120,1779202247000,-300.0,8.885e-05,2]
[422643119,1779202247000,-300.0,8.885e-05,2]
[422643125,1779202247000,-548.06,8.886e-05,2]
[422643123,1779202247000,-300.0,8.885e-05,2]
[422643134,1779202247000,-500.0,8.986e-05,2]
[422643126,1779202247000,-500.6584761,8.886e-05,2]
[422643124,1779202247000,-375.57,8.886e-05,2]
[422643127,1779202247000,-1560.39051,8.904e-05,2]
[422643128,1779202247000,-500.0,8.911e-05,2]
[422643132,1779202247000,-500.0,8.986e-05,2]
[422643129,1779202247000,-295.07,8.959e-05,2]
[422643130,1779202247000,-500.0,8.96e-05,2]
[422643084,1779202247000,-541.59703694,8.712e-05,2]
[422643133,1779202247000,-398.63,8.986e-05,2]
[422643136,1779202247000,-500.0,8.986e-05,2]
[422643137,1779202247000,-10000.0,9.123e-05,2]
[422643135,1779202247000,-500.0,8.986e-05,2]
[422643112,1779202247000,-300.0,8.885e-05,2]
[422643113,1779202247000,-300.0,8.885e-05,2]
[422643131,1779202247000,-308.39,8.96e-05,2]
[422643100,1779202247000,-500.0,8.712e-05,2]
[422643110,1779202247000,-300.0,8.885e-05,2]
[422643090,1779202247000,-500.0,8.712e-05,2]
[422643086,1779202247000,-500.0,8.712e-05,2]
[422643088,1779202247000,-500.0,8.712e-05,2]
[422643087,1779202247000,-500.0,8.712e-05,2]
[422643089,1779202247000,-500.0,8.712e-05,2]
[422643092,1779202247000,-500.0,8.712e-05,2]
[422643096,1779202247000,-500.0,8.712e-05,2]
[422643093,1779202247000,-500.0,8.712e-05,2]
[422643091,1779202247000,-500.0,8.712e-05,2]
[422643094,1779202247000,-500.0,8.712e-05,2]
[422643095,1779202247000,-500.0,8.712e-05,2]
[422643085,1779202247000,-500.0,8.712e-05,2]
[422643099,1779202247000,-500.0,8.712e-05,2]
[422643097,1779202247000,-500.0,8.712e-05,2]
[422643108,1779202247000,-600.0,8.784e-05,2]
[422643098,1779202247000,-500.0,8.712e-05,2]
[422643107,1779202247000,-500.0,8.712e-05,2]
[422643109,1779202247000,-300.0,8.885e-05,2]
[422643102,1779202247000,-293.01977917,8.712e-05,2]
[422643105,1779202247000,-471.32930064,8.712e-05,2]
[422643104,1779202247000,-500.0,8.712e-05,2]
[422643101,1779202247000,-500.0,8.712e-05,2]
[422643106,1779202247000,-500.0,8.712e-05,2]
[422643103,1779202247000,-500.0,8.712e-05,2]
[422643164,1779202248000,-500.0,0.00011152,2]
[422643168,1779202248000,-266.3174231,0.0001137,7]
[422643160,1779202248000,-500.0,0.00010878,2]
[422643163,1779202248000,-200.0,0.00011111,2]
[422643167,1779202248000,-256.58012049,0.0001137,7]
[422643169,1779202248000,-261.05739251,0.0001137,7]
[422643165,1779202248000,-330.29742242,0.0001137,7]
[422643162,1779202248000,-154.60474793,0.00010922,7]
[422643166,1779202248000,-309.20949585,0.0001137,7]
[422643179,1779202248000,-537.6845,0.00011668,2]
[422643172,1779202248000,-479.56866479,0.00011461,2]
[422643180,1779202248000,-537.6845,0.00011668,2]
[422643178,1779202248000,-162.380719,0.00011668,2]
[422643174,1779202248000,-727.74,0.00011548,2]
[422643175,1779202248000,-735.87,0.00011571,2]
[422643181,1779202248000,-500.0,0.00011668,2]
[422643177,1779202248000,-151.0,0.00011668,2]
[422643183,1779202248000,-282.29103626,0.00011668,7]
[422643171,1779202248000,-500.0,0.00011426,2]
[422643182,1779202248000,-283.33368812,0.00011668,7]
[422643173,1779202248000,-200.0,0.00011508,2]
[422643161,1779202248000,-165.14871121,0.00010922,7]
[422643148,1779202248000,-607.54,9.534e-05,2]
[422643155,1779202248000,-587.0,0.00010177,2]
[422643187,1779202248000,-207.48618496,0.00011668,7]
[422643146,1779202248000,-500.0,9.508e-05,2]
[422643140,1779202248000,-420.0,9.252e-05,2]
[422643139,1779202248000,-1560.39051,9.236e-05,2]
[422643138,1779202248000,-500.0,9.234e-05,2]
[422643141,1779202248000,-500.0,9.26e-05,2]
[422643143,1779202248000,-349.48,9.26e-05,2]
[422643144,1779202248000,-276.02,9.26e-05,2]
[422643147,1779202248000,-364.98,9.534e-05,2]
[422643142,1779202248000,-500.0,9.26e-05,2]
[422643145,1779202248000,-423.51518449,9.461e-05,2]
[422643150,1779202248000,-720.0,9.663e-05,2]
[422643151,1779202248000,-500.0,9.782e-05,2]
[422643149,1779202248000,-1560.39051,9.569e-05,2]
[422643152,1779202248000,-167.07741502,9.848e-05,2]
[422643156,1779202248000,-500.0,0.0001033,2]
[422643157,1779202248000,-170.759237,0.00010396,2]
[422643158,1779202248000,-500.0,0.00010604,2]
[422643154,1779202248000,-500.0,0.00010056,2]
[422643159,1779202248000,-864.0,0.00010629,2]
[422643153,1779202248000,-209.75417917,0.0001,2]
[422643170,1779202248000,-287.52110793,0.0001137,7]
[422643184,1779202248000,-189.05744461,0.00011668,7]
[422643176,1779202248000,-771.43,0.0001162,2]
[422643191,1779202248000,-44434.02361251,0.00011685,2]
[422643185,1779202248000,-513.16024099,0.00011668,7]
[422643210,1779202248000,-413.0,0.00011975,2]
[422643205,1779202248000,-866.687934,0.00011893,2]
[422643216,1779202248000,-160.0,0.00012293,2]
[422643215,1779202248000,-286.655745,0.00012258,2]
[422643217,1779202248000,-424.130574,0.00012293,2]
[422643221,1779202248000,-160.0,0.00012325,2]
[422643218,1779202248000,-688.261148,0.00012293,2]
[422643220,1779202248000,-200.0,0.00012302,2]
[422643225,1779202248000,-160.0,0.00012325,2]
[422643222,1779202248000,-766.35754341,0.00012325,2]
[422643219,1779202248000,-10336.14311111,0.000123,2]
[422643224,1779202248000,-160.0,0.00012325,2]
[422643223,1779202248000,-161.69304527,0.00012325,2]
[422643227,1779202248000,-303.631698,0.00012352,2]
[422643228,1779202248000,-323.067253,0.00012355,2]
[422643230,1779202248000,-160.0,0.00012413,2]
[422643233,1779202248000,-7149.55046292,0.000125,2]
[422643229,1779202248000,-377.119398,0.00012413,2]
[422643232,1779202248000,-513.175436,0.00012413,2]
[422643231,1779202248000,-336.587718,0.00012413,2]
[422643211,1779202248000,-160.0,0.00012162,2]
[422643214,1779202248000,-500.0,0.00012247,2]
[422643207,1779202248000,-947.43,0.00011938,2]
[422643213,1779202248000,-488.3696,0.00012162,2]
[422643190,1779202248000,-575.04221585,0.00011668,7]
[422643186,1779202248000,-250.90902066,0.00011668,7]
[422643189,1779202248000,-522.11478503,0.00011668,7]
[422643188,1779202248000,-532.63484619,0.00011668,7]
[422643193,1779202248000,-35126.33914224,0.00011685,2]
[422643192,1779202248000,-3873.65076254,0.00011685,2]
[422643196,1779202248000,-500.0,0.000117,2]
[422643203,1779202248000,-866.66,0.00011863,2]
[422643226,1779202248000,-2997.08769527,0.0001235,2]
[422643197,1779202248000,-557.5788265,0.00011723,2]
[422643199,1779202248000,-578.20924308,0.00011778,2]
[422643198,1779202248000,-824.71,0.00011768,2]
[422643208,1779202248000,-903.86,0.00011938,2]
[422643194,1779202248000,-794.41,0.00011687,2]
[422643212,1779202248000,-324.1848,0.00012162,2]
[422643206,1779202248000,-200.0,0.00011905,2]
[422643204,1779202248000,-3615.7229077,0.00011893,2]
[422643202,1779202248000,-195.4553965,0.00011833,2]
[422643195,1779202248000,-1000.0,0.00011692,2]
[422643200,1779202248000,-782.043,0.00011784,2]
[422643201,1779202248000,-150.307,0.00011784,2]
[422643209,1779202248000,-500.0,0.00011973,2]
[422643237,1779202691000,164.617923,4.957e-05,2]
[422643236,1779202691000,164.617923,3.755e-05,2]
[422643249,1779202752000,195.0,0.00015879,30]
[422643252,1779202995000,295.0,0.00015879,30]
[422643262,1779203363000,215.0,0.00015879,30]
[422643306,1779203431000,-102.3317729,6.31e-05,2]
[422643301,1779203431000,-164.617923,6.16e-05,2]
[422643303,1779203431000,-225.377077,6.31e-05,2]
[422643307,1779203431000,-354.9702271,7.088e-05,2]
[422643427,1779203438000,-5331.66934726,7.6e-05,2]
[422643421,1779203438000,-2512.8446788,7.088e-05,2]
[422643424,1779203438000,-1096.61886591,7.6e-05,2]
[422643422,1779203438000,-164.617923,7.362e-05,2]
[422643423,1779203438000,-300.0,7.599e-05,2]
[422643425,1779203438000,-1042.37256033,7.6e-05,2]
[422643426,1779203438000,-1556.38474934,7.6e-05,2]
[422643428,1779203438000,-300.0,7.751e-05,2]
[422643437,1779203438000,-300.0,7.751e-05,2]
[422643430,1779203438000,-300.0,7.751e-05,2]
[422643436,1779203438000,-300.0,7.751e-05,2]
[422643429,1779203438000,-300.0,7.751e-05,2]
[422643432,1779203438000,-300.0,7.751e-05,2]
[422643443,1779203438000,-600.0,7.905e-05,2]
[422643442,1779203438000,-300.0,7.751e-05,2]
[422643445,1779203438000,-1434.94698709,8.113e-05,2]
[422643444,1779203438000,-824.736789,8.067e-05,2]
[422643441,1779203438000,-300.0,7.751e-05,2]
[422643435,1779203438000,-300.0,7.751e-05,2]
[422643440,1779203438000,-300.0,7.751e-05,2]
[422643439,1779203438000,-300.0,7.751e-05,2]
[422643434,1779203438000,-300.0,7.751e-05,2]
[422643433,1779203438000,-300.0,7.751e-05,2]
[422643431,1779203438000,-300.0,7.751e-05,2]
[422643438,1779203438000,-300.0,7.751e-05,2]
[422643504,1779203446000,-500.0,8.219e-05,2]
[422643507,1779203446000,-500.0,8.219e-05,2]
[422643510,1779203446000,-500.0,8.219e-05,2]
[422643501,1779203446000,-500.0,8.219e-05,2]
[422643508,1779203446000,-500.0,8.219e-05,2]
[422643517,1779203446000,-500.0,8.312e-05,2]
[422643511,1779203446000,-386.69644288,8.31e-05,2]
[422643512,1779203446000,-609.22,8.312e-05,2]
[422643513,1779203446000,-500.0,8.312e-05,2]
[422643514,1779203446000,-500.0,8.312e-05,2]
[422643523,1779203446000,-500.0,8.312e-05,2]
[422643503,1779203446000,-500.0,8.219e-05,2]
[422643509,1779203446000,-500.0,8.219e-05,2]
[422643505,1779203446000,-500.0,8.219e-05,2]
[422643493,1779203446000,-500.0,8.219e-05,2]
[422643500,1779203446000,-589.74,8.219e-05,2]
[422643506,1779203446000,-500.0,8.219e-05,2]
[422643491,1779203446000,-500.0,8.219e-05,2]
[422643497,1779203446000,-500.0,8.219e-05,2]
[422643489,1779203446000,-210.32349755,8.212e-05,2]
[422643499,1779203446000,-548.98,8.219e-05,2]
[422643498,1779203446000,-500.0,8.219e-05,2]
[422643490,1779203446000,-43415.1798172,8.213e-05,2]
[422643492,1779203446000,-500.0,8.219e-05,2]
[422643496,1779203446000,-500.0,8.219e-05,2]
[422643494,1779203446000,-500.0,8.219e-05,2]
[422643495,1779203446000,-500.0,8.219e-05,2]
[422643488,1779203446000,-5317.17598986,8.113e-05,2]
[422643502,1779203446000,-500.0,8.219e-05,2]
[422643519,1779203446000,-500.0,8.312e-05,2]
[422643531,1779203446000,-500.0,8.312e-05,2]
[422643516,1779203446000,-500.0,8.312e-05,2]
[422643518,1779203446000,-500.0,8.312e-05,2]
[422643546,1779203446000,-500.0,8.312e-05,2]
[422643545,1779203446000,-500.0,8.312e-05,2]
[422643544,1779203446000,-500.0,8.312e-05,2]
[422643542,1779203446000,-500.0,8.312e-05,2]
[422643541,1779203446000,-500.0,8.312e-05,2]
[422643538,1779203446000,-500.0,8.312e-05,2]
[422643543,1779203446000,-500.0,8.312e-05,2]
[422643539,1779203446000,-500.0,8.312e-05,2]
[422643540,1779203446000,-573.35,8.312e-05,2]
[422643547,1779203446000,-500.0,8.312e-05,2]
[422643537,1779203446000,-500.0,8.312e-05,2]
[422643536,1779203446000,-500.0,8.312e-05,2]
[422643529,1779203446000,-560.35,8.312e-05,2]
[422643548,1779203446000,-500.0,8.312e-05,2]
[422643527,1779203446000,-500.0,8.312e-05,2]
[422643521,1779203446000,-500.0,8.312e-05,2]
[422643515,1779203446000,-500.0,8.312e-05,2]
[422643520,1779203446000,-500.0,8.312e-05,2]
[422643522,1779203446000,-500.0,8.312e-05,2]
[422643533,1779203446000,-500.0,8.312e-05,2]
[422643524,1779203446000,-500.0,8.312e-05,2]
[422643534,1779203446000,-500.0,8.312e-05,2]
[422643526,1779203446000,-500.0,8.312e-05,2]
[422643532,1779203446000,-500.0,8.312e-05,2]
[422643525,1779203446000,-559.21,8.312e-05,2]
[422643530,1779203446000,-618.89,8.312e-05,2]
[422643528,1779203446000,-500.0,8.312e-05,2]
[422643535,1779203446000,-500.0,8.312e-05,2]
[422643588,1779203447000,-500.0,8.312e-05,2]
[422643585,1779203447000,-500.0,8.312e-05,2]
[422643584,1779203447000,-500.0,8.312e-05,2]
[422643582,1779203447000,-500.0,8.312e-05,2]
[422643574,1779203447000,-500.0,8.312e-05,2]
[422643592,1779203447000,-500.0,8.312e-05,2]
[422643590,1779203447000,-500.0,8.312e-05,2]
[422643581,1779203447000,-500.0,8.312e-05,2]
[422643591,1779203447000,-500.0,8.312e-05,2]
[422643578,1779203447000,-500.0,8.312e-05,2]
[422643583,1779203447000,-500.0,8.312e-05,2]
[422643586,1779203447000,-500.0,8.312e-05,2]
[422643593,1779203447000,-500.0,8.312e-05,2]
[422643589,1779203447000,-411.13703669,8.312e-05,2]
[422643594,1779203447000,-500.0,8.312e-05,2]
[422643598,1779203447000,-500.11,8.312e-05,2]
[422643599,1779203447000,-500.0,8.312e-05,2]
[422643595,1779203447000,-500.0,8.312e-05,2]
[422643597,1779203447000,-500.0,8.312e-05,2]
[422643600,1779203447000,-500.14,8.312e-05,2]
[422643596,1779203447000,-500.0,8.312e-05,2]
[422643601,1779203447000,-500.0,8.312e-05,2]
[422643604,1779203447000,-500.0,8.312e-05,2]
[422643602,1779203447000,-522.62,8.312e-05,2]
[422643575,1779203447000,-500.0,8.312e-05,2]
[422643587,1779203447000,-500.0,8.312e-05,2]
[422643572,1779203447000,-500.0,8.312e-05,2]
[422643560,1779203447000,-500.0,8.312e-05,2]
[422643576,1779203447000,-500.0,8.312e-05,2]
[422643603,1779203447000,-500.0,8.312e-05,2]
[422643559,1779203447000,-500.0,8.312e-05,2]
[422643549,1779203447000,-500.0,8.312e-05,2]
[422643556,1779203447000,-500.0,8.312e-05,2]
[422643551,1779203447000,-1655.1425,8.312e-05,2]
[422643552,1779203447000,-500.0,8.312e-05,2]
[422643553,1779203447000,-503.14,8.312e-05,2]
[422643550,1779203447000,-500.0,8.312e-05,2]
[422643555,1779203447000,-500.0,8.312e-05,2]
[422643554,1779203447000,-256.44557497,8.312e-05,2]
[422643558,1779203447000,-500.0,8.312e-05,2]
[422643557,1779203447000,-500.0,8.312e-05,2]
[422643577,1779203447000,-500.0,8.312e-05,2]
[422643561,1779203447000,-500.0,8.312e-05,2]
[422643567,1779203447000,-500.0,8.312e-05,2]
[422643564,1779203447000,-612.78923446,8.312e-05,2]
[422643563,1779203447000,-500.0,8.312e-05,2]
[422643565,1779203447000,-500.0,8.312e-05,2]
[422643566,1779203447000,-500.0,8.312e-05,2]
[422643568,1779203447000,-500.0,8.312e-05,2]
[422643562,1779203447000,-560.89,8.312e-05,2]
[422643570,1779203447000,-500.0,8.312e-05,2]
[422643571,1779203447000,-500.0,8.312e-05,2]
[422643580,1779203447000,-500.0,8.312e-05,2]
[422643573,1779203447000,-210.89008594,8.312e-05,2]
[422643579,1779203447000,-500.0,8.312e-05,2]
[422643569,1779203447000,-500.0,8.312e-05,2]
[422643605,1779203447000,-500.0,8.312e-05,2]
[422643644,1779203447000,-500.0,8.312e-05,2]
[422643608,1779203447000,-511.92,8.312e-05,2]
[422643638,1779203447000,-500.0,8.312e-05,2]
[422643640,1779203447000,-500.17,8.312e-05,2]